[Event "*** Titled Tuesday Blitz"]
[Site "Chess.com"]
[Date "2021.02.09"]
[Round "5"]
[White "Beca95"]
[Black "mikolka1985"]
[Result "1-0"]
[WhiteElo "2902"]
[BlackElo "2608"]
[TimeControl "180+1"]
[EndTime "10:58:40 PST"]
[Termination "Beca95 won on time"]

1. d4 {[%clk 0:03:00.9]} 1... Nf6 {[%clk 0:02:58.2]} 2. c4 {[%clk 0:03:01.2]}
2... e6 {[%clk 0:02:57.8]} 3. Nc3 {[%clk 0:03:01.8]} 3... Bb4 {[%clk 0:02:57.1]}
4. Nf3 {[%clk 0:03:02.4]} 4... b6 {[%clk 0:02:45.4]} 5. Bg5 {[%clk 0:03:01.4]}
5... Bb7 {[%clk 0:02:44.5]} 6. Nd2 {[%clk 0:03:01.7]} 6... h6 {[%clk 0:02:23.6]}
7. Bh4 {[%clk 0:03:00.8]} 7... Nc6 {[%clk 0:02:13.2]} 8. e3 {[%clk 0:02:58.5]}
8... Bxc3 {[%clk 0:02:12.7]} 9. bxc3 {[%clk 0:02:59.4]} 9... Ne7 {[%clk
0:02:12.9]} 10. f3 {[%clk 0:02:57.6]} 10... Ng6 {[%clk 0:02:10.6]} 11. Bf2
{[%clk 0:02:56.9]} 11... d6 {[%clk 0:02:10]} 12. e4 {[%clk 0:02:56.1]} 12... e5
{[%clk 0:02:07.3]} 13. h4 {[%clk 0:02:56.2]} 13... O-O {[%clk 0:02:06.4]} 14. h5
{[%clk 0:02:51]} 14... Nf4 {[%clk 0:02:05.8]} 15. g3 {[%clk 0:02:27.9]} 15...
Ne6 {[%clk 0:01:43.3]} 16. Bd3 {[%clk 0:02:26.4]} 16... Nd7 {[%clk 0:01:41.2]}
17. Be3 {[%clk 0:02:09.5]} 17... Qf6 {[%clk 0:01:38.7]} 18. Nb3 {[%clk
0:01:56.7]} 18... Rfe8 {[%clk 0:01:36.6]} 19. O-O {[%clk 0:01:51.9]} 19... c6
{[%clk 0:01:00.4]} 20. f4 {[%clk 0:01:39.2]} 20... Qe7 {[%clk 0:00:49.6]} 21.
Nd2 {[%clk 0:00:40.3]} 21... Ba6 {[%clk 0:00:47.9]} 22. Rf2 {[%clk 0:00:26.5]}
22... Nc7 {[%clk 0:00:45.4]} 23. Bf1 {[%clk 0:00:22.6]} 23... Nf6 {[%clk
0:00:44.3]} 24. Bg2 {[%clk 0:00:21.5]} 24... Bc8 {[%clk 0:00:40.2]} 25. Bf3
{[%clk 0:00:19.4]} 25... Bd7 {[%clk 0:00:30.4]} 26. d5 {[%clk 0:00:17.6]} 26...
b5 {[%clk 0:00:28.1]} 27. fxe5 {[%clk 0:00:15]} 27... dxe5 {[%clk 0:00:27.6]}
28. Nf1 {[%clk 0:00:12.7]} 28... cxd5 {[%clk 0:00:20.4]} 29. cxd5 {[%clk
0:00:12.6]} 29... Qd6 {[%clk 0:00:20.3]} 30. g4 {[%clk 0:00:12.1]} 30... Nh7
{[%clk 0:00:17.4]} 31. a4 {[%clk 0:00:11.8]} 31... bxa4 {[%clk 0:00:14.2]} 32.
c4 {[%clk 0:00:11.9]} 32... Na6 {[%clk 0:00:14.5]} 33. Qc1 {[%clk 0:00:12.1]}
33... Nc5 {[%clk 0:00:13.8]} 34. Qa3 {[%clk 0:00:11]} 34... Rec8 {[%clk
0:00:13.3]} 35. Rb2 {[%clk 0:00:10.7]} 35... Ng5 {[%clk 0:00:12]} 36. Bg2 {[%clk
0:00:10.4]} 36... Qf8 {[%clk 0:00:12]} 37. Nd2 {[%clk 0:00:10.1]} 37... Bxg4
{[%clk 0:00:10.8]} 38. Rb5 {[%clk 0:00:08.9]} 38... Nd7 {[%clk 0:00:08.5]} 39.
Qxf8+ {[%clk 0:00:09]} 39... Kxf8 {[%clk 0:00:08.1]} 40. c5 {[%clk 0:00:09.7]}
40... a6 {[%clk 0:00:07]} 41. Ra5 {[%clk 0:00:10.3]} 41... Nf6 {[%clk
0:00:06.7]} 42. c6 {[%clk 0:00:10.1]} 42... Bxh5 {[%clk 0:00:06.5]} 43. R1xa4
{[%clk 0:00:10.1]} 43... Ng4 {[%clk 0:00:05.6]} 44. Bc5+ {[%clk 0:00:09.4]}
44... Kg8 {[%clk 0:00:06.1]} 45. Rxa6 {[%clk 0:00:09.9]} 45... Rab8 {[%clk
0:00:05.5]} 46. Rb6 {[%clk 0:00:09.6]} 46... Rxb6 {[%clk 0:00:04.8]} 47. Bxb6
{[%clk 0:00:10.5]} 47... Nf6 {[%clk 0:00:04.2]} 48. d6 {[%clk 0:00:10.9]} 48...
Bg4 {[%clk 0:00:03.3]} 49. Ra7 {[%clk 0:00:09.4]} 49... Rxc6 {[%clk 0:00:01.7]}
50. Bc7 {[%clk 0:00:07.8]} 50... Rc1+ {[%clk 0:00:02.6]} 51. Kf2 {[%clk
0:00:07.5]} 51... Be6 {[%clk 0:00:03.1]} 52. Bf1 {[%clk 0:00:07]} 52... Kh7
{[%clk 0:00:03.4]} 53. Bd3 {[%clk 0:00:06.6]} 53... Ng4+ {[%clk 0:00:03.3]} 54.
Ke2 {[%clk 0:00:06.9]} 54... Rg1 {[%clk 0:00:02.9]} 55. Bb6 {[%clk 0:00:07.3]}
55... Rg2+ {[%clk 0:00:03]} 56. Kd1 {[%clk 0:00:07.9]} 56... Nf2+ {[%clk
0:00:02.9]} 57. Bxf2 {[%clk 0:00:07]} 57... Rxf2 {[%clk 0:00:02.5]} 58. d7
{[%clk 0:00:07.9]} 58... Rg2 {[%clk 0:00:03]} 59. d8=Q {[%clk 0:00:07.6]} 59...
Bg4+ {[%clk 0:00:03.4]} 60. Kc2 {[%clk 0:00:07.9]} 60... Nf3 {[%clk 0:00:02.8]}
61. Ra8 {[%clk 0:00:07.1]} 61... Rxd2+ {[%clk 0:00:02.4]} 62. Kc3 {[%clk
0:00:07.5]} 62... Rd1 {[%clk 0:00:02.1]} 63. Qh8+ {[%clk 0:00:07.3]} 63... Kg6
{[%clk 0:00:02]} 64. Rg8 {[%clk 0:00:07.9]} 1-0

[Event "*** Titled Tuesday Blitz"]
[Site "Chess.com"]
[Date "2021.02.09"]
[Round "5"]
[White "vladimirdamjanovic"]
[Black "Kostukov_Alex"]
[Result "0-1"]
[WhiteElo "2505"]
[BlackElo "2377"]
[TimeControl "180+1"]
[EndTime "10:58:43 PST"]
[Termination "Kostukov_Alex won by checkmate"]

1. d4 {[%clk 0:02:57.8]} 1... g6 {[%clk 0:02:54.1]} 2. Nf3 {[%clk 0:02:44]} 2...
Bg7 {[%clk 0:02:53.8]} 3. g3 {[%clk 0:02:44.7]} 3... d6 {[%clk 0:02:54.1]} 4.
Bg2 {[%clk 0:02:45.3]} 4... Nf6 {[%clk 0:02:54.1]} 5. O-O {[%clk 0:02:45.9]}
5... O-O {[%clk 0:02:54.7]} 6. Re1 {[%clk 0:02:46.6]} 6... c6 {[%clk 0:02:47.7]}
7. e4 {[%clk 0:02:43.7]} 7... Qa5 {[%clk 0:02:38.7]} 8. e5 {[%clk 0:02:37.8]}
8... dxe5 {[%clk 0:02:33.4]} 9. dxe5 {[%clk 0:02:28.9]} 9... Ng4 {[%clk
0:02:28.3]} 10. Bf4 {[%clk 0:01:45.4]} 10... Qb6 {[%clk 0:02:17]} 11. Qd4 {[%clk
0:01:36.3]} 11... c5 {[%clk 0:02:08.6]} 12. Qc3 {[%clk 0:01:29.7]} 12... Nc6
{[%clk 0:02:00.9]} 13. h3 {[%clk 0:01:19.9]} 13... Nh6 {[%clk 0:02:00.7]} 14.
Na3 {[%clk 0:01:18.8]} 14... Qb4 {[%clk 0:01:50.4]} 15. Qxb4 {[%clk 0:01:08.8]}
15... Nxb4 {[%clk 0:01:39]} 16. Ng5 {[%clk 0:00:37.6]} 16... Nf5 {[%clk
0:01:25.1]} 17. g4 {[%clk 0:00:03.1]} 17... Nd4 {[%clk 0:01:16]} 18. c3 {[%clk
0:00:03.2]} 18... Nd3 {[%clk 0:01:15.9]} 19. cxd4 {[%clk 0:00:03.4]} 19... Nxf4
{[%clk 0:01:15.6]} 20. dxc5 {[%clk 0:00:02.3]} 20... Nd3 {[%clk 0:01:13.9]} 21.
Re3 {[%clk 0:00:02.9]} 21... Nxe5 {[%clk 0:01:07]} 22. Rae1 {[%clk 0:00:03.1]}
22... Nc6 {[%clk 0:01:06.8]} 23. Bxc6 {[%clk 0:00:02.7]} 23... bxc6 {[%clk
0:01:06.8]} 24. Nc4 {[%clk 0:00:03.1]} 24... h6 {[%clk 0:01:00.4]} 25. Nf3
{[%clk 0:00:02]} 25... Be6 {[%clk 0:01:00.6]} 26. Nfe5 {[%clk 0:00:02.1]} 26...
Bd5 {[%clk 0:00:58.4]} 27. b3 {[%clk 0:00:02.7]} 27... Bf6 {[%clk 0:00:53.4]}
28. Na5 {[%clk 0:00:02.8]} 28... Rfc8 {[%clk 0:00:50.3]} 29. f4 {[%clk
0:00:02.2]} 29... Bh4 {[%clk 0:00:49.5]} 30. Rd1 {[%clk 0:00:02]} 30... e6
{[%clk 0:00:46.8]} 31. Nec4 {[%clk 0:00:01.7]} 31... Be7 {[%clk 0:00:41.1]} 32.
Nd6 {[%clk 0:00:01.8]} 32... Rc7 {[%clk 0:00:34.5]} 33. Ndc4 {[%clk 0:00:01.6]}
33... Bxc5 {[%clk 0:00:32.9]} 34. Kf2 {[%clk 0:00:02.2]} 34... Rd8 {[%clk
0:00:24.2]} 35. Ne5 {[%clk 0:00:01.9]} 35... Kg7 {[%clk 0:00:20.9]} 36. g5
{[%clk 0:00:02]} 36... f6 {[%clk 0:00:19.8]} 37. gxf6+ {[%clk 0:00:02.1]} 37...
Kxf6 {[%clk 0:00:20.5]} 38. Ng4+ {[%clk 0:00:02.7]} 38... Kg7 {[%clk 0:00:19.4]}
39. Nc4 {[%clk 0:00:02.8]} 39... Bxe3+ {[%clk 0:00:18.5]} 40. Kxe3 {[%clk
0:00:03.7]} 40... Rf8 {[%clk 0:00:18.6]} 41. Nce5 {[%clk 0:00:03.7]} 41... h5
{[%clk 0:00:17.9]} 42. Nf2 {[%clk 0:00:03.4]} 42... c5 {[%clk 0:00:18.5]} 43.
Rc1 {[%clk 0:00:03]} 43... Rf5 {[%clk 0:00:15.9]} 44. Nd1 {[%clk 0:00:02.4]}
44... g5 {[%clk 0:00:16.2]} 45. Nd3 {[%clk 0:00:01.5]} 45... gxf4+ {[%clk
0:00:15.7]} 46. Nxf4 {[%clk 0:00:02.4]} 46... Re5+ {[%clk 0:00:15.9]} 47. Kd2
{[%clk 0:00:01.5]} 47... Re4 {[%clk 0:00:15.5]} 48. Ne2 {[%clk 0:00:01.2]} 48...
Rf7 {[%clk 0:00:14.8]} 49. Ndc3 {[%clk 0:00:01.8]} 49... Rh4 {[%clk 0:00:13.2]}
50. Rg1+ {[%clk 0:00:02.5]} 50... Kf6 {[%clk 0:00:12.7]} 51. Rg3 {[%clk
0:00:02.1]} 51... Rg7 {[%clk 0:00:12]} 52. Re3 {[%clk 0:00:01.7]} 52... Rg2
{[%clk 0:00:11]} 53. Rd3 {[%clk 0:00:01.7]} 53... Rd4 {[%clk 0:00:09.5]} 54. Ke3
{[%clk 0:00:01.4]} 54... Rxd3+ {[%clk 0:00:09.6]} 55. Kxd3 {[%clk 0:00:02.3]}
55... Rh2 {[%clk 0:00:09.2]} 56. Nf4 {[%clk 0:00:02.8]} 56... Kf5 {[%clk
0:00:08.1]} 57. Ke3 {[%clk 0:00:01.7]} 57... h4 {[%clk 0:00:06.6]} 58. a3 {[%clk
0:00:01.3]} 58... a5 {[%clk 0:00:06.2]} 59. b4 {[%clk 0:00:02.2]} 59... axb4
{[%clk 0:00:06.1]} 60. axb4 {[%clk 0:00:03.1]} 60... cxb4 {[%clk 0:00:07]} 61.
Ncxd5 {[%clk 0:00:04]} 61... exd5 {[%clk 0:00:07.1]} 62. Nxd5 {[%clk 0:00:04.9]}
62... b3 {[%clk 0:00:07.9]} 63. Ne7+ {[%clk 0:00:05.5]} 63... Ke6 {[%clk
0:00:07.8]} 64. Ng6 {[%clk 0:00:04.7]} 64... b2 {[%clk 0:00:08.2]} 65. Nf4+
{[%clk 0:00:05.6]} 65... Kd6 {[%clk 0:00:08.2]} 66. Kf3 {[%clk 0:00:06.5]} 66...
b1=Q {[%clk 0:00:08]} 67. Kg4 {[%clk 0:00:07.4]} 67... Qe4 {[%clk 0:00:07.9]}
68. Kxh4 {[%clk 0:00:08.3]} 68... Qxf4+ {[%clk 0:00:08.2]} 69. Kh5 {[%clk
0:00:08.7]} 69... Rxh3+ {[%clk 0:00:08.8]} 70. Kg6 {[%clk 0:00:09.6]} 70... Rh6+
{[%clk 0:00:09]} 71. Kg7 {[%clk 0:00:10.5]} 71... Qf6+ {[%clk 0:00:09.6]} 72.
Kg8 {[%clk 0:00:11.4]} 72... Rh8# {[%clk 0:00:10.2]} 0-1

[Event "*** Titled Tuesday Blitz"]
[Site "Chess.com"]
[Date "2021.02.09"]
[Round "5"]
[White "superchess02"]
[Black "hansen"]
[Result "0-1"]
[WhiteElo "2787"]
[BlackElo "2957"]
[TimeControl "180+1"]
[EndTime "10:58:44 PST"]
[Termination "hansen won by resignation"]

1. e4 {[%clk 0:03:00.9]} 1... c5 {[%clk 0:03:00.1]} 2. g3 {[%clk 0:03:00.4]}
2... Nc6 {[%clk 0:03:00.3]} 3. Bg2 {[%clk 0:03:00.7]} 3... g6 {[%clk 0:03:00.5]}
4. Ne2 {[%clk 0:03:00.6]} 4... Bg7 {[%clk 0:03:01.1]} 5. Nbc3 {[%clk 0:03:01.2]}
5... d6 {[%clk 0:03:01.4]} 6. O-O {[%clk 0:03:01.1]} 6... e6 {[%clk 0:03:00.7]}
7. f4 {[%clk 0:02:59]} 7... Nge7 {[%clk 0:03:01]} 8. d3 {[%clk 0:02:57.7]} 8...
O-O {[%clk 0:03:01.3]} 9. Be3 {[%clk 0:02:57.7]} 9... Nd4 {[%clk 0:03:01.4]} 10.
Kh1 {[%clk 0:02:56.4]} 10... Nec6 {[%clk 0:02:55]} 11. Qd2 {[%clk 0:02:53.7]}
11... b6 {[%clk 0:02:48.8]} 12. a4 {[%clk 0:02:16.4]} 12... Bb7 {[%clk
0:02:48.6]} 13. Rab1 {[%clk 0:02:14.3]} 13... Qd7 {[%clk 0:02:44]} 14. Nd1
{[%clk 0:02:13.9]} 14... Nxe2 {[%clk 0:02:41.9]} 15. Qxe2 {[%clk 0:02:14.8]}
15... Nd4 {[%clk 0:02:42.4]} 16. Bxd4 {[%clk 0:02:14.9]} 16... cxd4 {[%clk
0:02:40.1]} 17. Ra1 {[%clk 0:02:14.9]} 17... Rac8 {[%clk 0:02:39.5]} 18. Nf2
{[%clk 0:02:13.6]} 18... Rc5 {[%clk 0:02:38.9]} 19. Rfc1 {[%clk 0:02:11.9]}
19... Rfc8 {[%clk 0:02:38.7]} 20. b4 {[%clk 0:02:06]} 20... Rc3 {[%clk
0:02:33.1]} 21. Nd1 {[%clk 0:02:05.6]} 21... R3c7 {[%clk 0:02:32.2]} 22. Nb2
{[%clk 0:02:03.8]} 22... d5 {[%clk 0:02:30.2]} 23. e5 {[%clk 0:01:59.7]} 23...
a6 {[%clk 0:02:11]} 24. Nd1 {[%clk 0:01:51.4]} 24... Bf8 {[%clk 0:02:10.5]} 25.
Qd2 {[%clk 0:01:34.9]} 25... Bc6 {[%clk 0:02:09.8]} 26. a5 {[%clk 0:01:33.4]}
26... Ba4 {[%clk 0:02:03.6]} 27. Ra2 {[%clk 0:01:32.7]} 27... bxa5 {[%clk
0:01:56.5]} 28. bxa5 {[%clk 0:01:32.5]} 28... Qb5 {[%clk 0:00:49.6]} 29. Rb2
{[%clk 0:01:31.7]} 29... Qc5 {[%clk 0:00:48.7]} 30. Ra2 {[%clk 0:01:31]} 30...
Bb5 {[%clk 0:00:40]} 31. Rb1 {[%clk 0:01:11.6]} 31... Qa7 {[%clk 0:00:31.6]} 32.
Bf3 {[%clk 0:01:08.1]} 32... Rc5 {[%clk 0:00:29.9]} 33. Nf2 {[%clk 0:01:07.6]}
33... Qc7 {[%clk 0:00:30.1]} 34. Bd1 {[%clk 0:01:07]} 34... h5 {[%clk
0:00:29.7]} 35. g4 {[%clk 0:01:05]} 35... Bh6 {[%clk 0:00:29.6]} 36. gxh5 {[%clk
0:00:59.4]} 36... Qxe5 {[%clk 0:00:25.5]} 37. fxe5 {[%clk 0:00:56.1]} 37... Bxd2
{[%clk 0:00:25.2]} 38. hxg6 {[%clk 0:00:56.6]} 38... fxg6 {[%clk 0:00:24.2]} 39.
Kg2 {[%clk 0:00:51.5]} 39... Kg7 {[%clk 0:00:24.2]} 40. Kg3 {[%clk 0:00:47.4]}
40... Rf8 {[%clk 0:00:20.9]} 41. Ng4 {[%clk 0:00:45.4]} 41... Bf4+ {[%clk
0:00:19.5]} 42. Kg2 {[%clk 0:00:45.3]} 42... Rf5 {[%clk 0:00:19.9]} 43. Bf3
{[%clk 0:00:43.1]} 43... g5 {[%clk 0:00:13.7]} 44. Re1 {[%clk 0:00:41.9]} 44...
Be8 {[%clk 0:00:12.5]} 45. Nf6 {[%clk 0:00:39.5]} 45... Bf7 {[%clk 0:00:12.3]}
46. Bg4 {[%clk 0:00:37.9]} 46... Rxe5 {[%clk 0:00:11.8]} 47. Rxe5 {[%clk
0:00:37.9]} 47... Kxf6 {[%clk 0:00:11]} 48. Re1 {[%clk 0:00:35.2]} 48... Rb5
{[%clk 0:00:09.6]} 49. h3 {[%clk 0:00:26.2]} 49... e5 {[%clk 0:00:09.9]} 50. Bc8
{[%clk 0:00:26.2]} 50... e4 {[%clk 0:00:04.1]} 51. Bxa6 {[%clk 0:00:24.9]} 51...
Rb8 {[%clk 0:00:04.5]} 52. Ra4 {[%clk 0:00:21.9]} 52... Ke5 {[%clk 0:00:03.2]}
53. dxe4 {[%clk 0:00:18.1]} 53... dxe4 {[%clk 0:00:03.6]} 54. Bd3 {[%clk
0:00:19]} 54... Bd5 {[%clk 0:00:03.7]} 55. a6 {[%clk 0:00:18.6]} 55... Ra8
{[%clk 0:00:02.3]} 56. a7 {[%clk 0:00:18.6]} 56... Be3 {[%clk 0:00:02.1]} 57.
Bb5 {[%clk 0:00:17.1]} 57... Bd2 {[%clk 0:00:02.3]} 58. Re2 {[%clk 0:00:15.9]}
58... Bc3 {[%clk 0:00:02.9]} 59. Bd3 {[%clk 0:00:15.2]} 59... Kf4 {[%clk
0:00:03]} 60. Bb5 {[%clk 0:00:15]} 60... e3+ {[%clk 0:00:03.1]} 61. Kg1 {[%clk
0:00:14.6]} 61... Bf3 {[%clk 0:00:03.6]} 62. Rh2 {[%clk 0:00:14.1]} 62... g4
{[%clk 0:00:03.4]} 63. hxg4 {[%clk 0:00:13.7]} 63... Bxg4 {[%clk 0:00:03.9]} 64.
Be2 {[%clk 0:00:14]} 64... Bf3 {[%clk 0:00:03.4]} 65. Rh4+ {[%clk 0:00:12.5]}
65... Kg3 {[%clk 0:00:03.7]} 66. Rh3+ {[%clk 0:00:12.5]} 66... Kxh3 {[%clk
0:00:03.4]} 67. Bxf3 {[%clk 0:00:12.9]} 67... Kg3 {[%clk 0:00:02.3]} 68. Bxa8
{[%clk 0:00:12.2]} 68... e2 {[%clk 0:00:02.9]} 69. Bg2 {[%clk 0:00:09.2]} 69...
e1=Q+ {[%clk 0:00:03.2]} 70. Bf1 {[%clk 0:00:09.8]} 70... Qf2+ {[%clk
0:00:03.8]} 0-1

[Event "*** Titled Tuesday Blitz"]
[Site "Chess.com"]
[Date "2021.02.09"]
[Round "5"]
[White "ukchessbomber"]
[Black "Rodalquilar"]
[Result "0-1"]
[WhiteElo "2423"]
[BlackElo "2681"]
[TimeControl "180+1"]
[EndTime "10:58:54 PST"]
[Termination "Rodalquilar won by checkmate"]

1. d4 {[%clk 0:03:00.9]} 1... d5 {[%clk 0:02:53.9]} 2. c4 {[%clk 0:02:59.5]}
2... e6 {[%clk 0:02:54]} 3. Nc3 {[%clk 0:02:59.6]} 3... a6 {[%clk 0:02:54.4]} 4.
cxd5 {[%clk 0:02:54.3]} 4... exd5 {[%clk 0:02:55.3]} 5. Bf4 {[%clk 0:02:54.8]}
5... Nf6 {[%clk 0:02:55]} 6. e3 {[%clk 0:02:54.8]} 6... c5 {[%clk 0:02:55.4]} 7.
Nf3 {[%clk 0:02:50.1]} 7... c4 {[%clk 0:02:55.8]} 8. a4 {[%clk 0:02:45.6]} 8...
Nc6 {[%clk 0:02:51.2]} 9. Be2 {[%clk 0:02:44.4]} 9... Bf5 {[%clk 0:02:51.2]} 10.
O-O {[%clk 0:02:44.5]} 10... Bd6 {[%clk 0:02:47.3]} 11. Bxd6 {[%clk 0:02:41.5]}
11... Qxd6 {[%clk 0:02:47.1]} 12. Nd2 {[%clk 0:02:42.4]} 12... O-O {[%clk
0:02:45.4]} 13. Re1 {[%clk 0:02:42.2]} 13... Rfe8 {[%clk 0:02:45.1]} 14. Bf1
{[%clk 0:02:39.3]} 14... Nb4 {[%clk 0:02:42.9]} 15. e4 {[%clk 0:02:33]} 15...
Nxe4 {[%clk 0:02:34.7]} 16. Ndxe4 {[%clk 0:02:32.7]} 16... Bxe4 {[%clk 0:02:35]}
17. Nxe4 {[%clk 0:02:32.5]} 17... dxe4 {[%clk 0:02:32.7]} 18. Bxc4 {[%clk
0:02:32.4]} 18... Rad8 {[%clk 0:02:31.2]} 19. Qb3 {[%clk 0:02:31.2]} 19... Re7
{[%clk 0:02:25.4]} 20. Rad1 {[%clk 0:02:00.8]} 20... a5 {[%clk 0:02:25.6]} 21.
Qg3 {[%clk 0:01:25.1]} 21... Qxg3 {[%clk 0:02:20.6]} 22. hxg3 {[%clk 0:01:26]}
22... Kf8 {[%clk 0:02:21.5]} 23. d5 {[%clk 0:01:18.7]} 23... f5 {[%clk
0:02:19.3]} 24. f3 {[%clk 0:01:14]} 24... exf3 {[%clk 0:01:36.8]} 25. gxf3
{[%clk 0:01:14.9]} 25... Nc2 {[%clk 0:01:36.8]} 26. Rxe7 {[%clk 0:01:08.1]}
26... Kxe7 {[%clk 0:01:37.7]} 27. Rd2 {[%clk 0:00:56.9]} 27... Nb4 {[%clk
0:01:37.1]} 28. Re2+ {[%clk 0:00:56.4]} 28... Kd6 {[%clk 0:01:37.5]} 29. f4
{[%clk 0:00:47.8]} 29... Kc5 {[%clk 0:01:37.4]} 30. Bb3 {[%clk 0:00:44.2]} 30...
Rd7 {[%clk 0:01:37.4]} 31. Re5 {[%clk 0:00:42]} 31... g6 {[%clk 0:01:37.5]} 32.
d6+ {[%clk 0:00:40.9]} 32... Kxd6 {[%clk 0:01:26.1]} 33. Rxa5 {[%clk 0:00:40.9]}
33... Kc6 {[%clk 0:01:15.5]} 34. Rb5 {[%clk 0:00:30.1]} 34... Nd3 {[%clk
0:01:15.8]} 35. Bc4 {[%clk 0:00:21.7]} 35... Nc5 {[%clk 0:01:10]} 36. Bf1 {[%clk
0:00:18.6]} 36... Rd1 {[%clk 0:00:47.1]} 37. Kg2 {[%clk 0:00:18.5]} 37... Rd2+
{[%clk 0:00:44.4]} 38. Kg1 {[%clk 0:00:18]} 38... Nxa4 {[%clk 0:00:39.7]} 39.
Bg2+ {[%clk 0:00:17.6]} 39... Kd6 {[%clk 0:00:37.5]} 40. Rxb7 {[%clk 0:00:12.7]}
40... Nxb2 {[%clk 0:00:34]} 41. Rxh7 {[%clk 0:00:12.5]} 41... Ke6 {[%clk
0:00:34.5]} 42. Rh6 {[%clk 0:00:11.8]} 42... Kf6 {[%clk 0:00:33.4]} 43. Rh8
{[%clk 0:00:11]} 43... Nc4 {[%clk 0:00:32.1]} 44. Rc8 {[%clk 0:00:08.8]} 44...
Ne3 {[%clk 0:00:32.1]} 45. Bf3 {[%clk 0:00:09.3]} 45... Nc2 {[%clk 0:00:32.1]}
46. Rc6+ {[%clk 0:00:09.5]} 46... Kg7 {[%clk 0:00:31.9]} 47. Rc7+ {[%clk
0:00:07.9]} 47... Kh6 {[%clk 0:00:31.9]} 48. Rc8 {[%clk 0:00:06.7]} 48... Nd4
{[%clk 0:00:31]} 49. Bb7 {[%clk 0:00:05.3]} 49... Ne2+ {[%clk 0:00:26.7]} 50.
Kf2 {[%clk 0:00:04.7]} 50... Nxf4+ {[%clk 0:00:23.8]} 51. Ke3 {[%clk 0:00:04.4]}
51... Rb2 {[%clk 0:00:24.2]} 52. Kxf4 {[%clk 0:00:03.3]} 52... Rb4+ {[%clk
0:00:24.3]} 53. Kf3 {[%clk 0:00:03.2]} 53... Rxb7 {[%clk 0:00:24.8]} 54. Rh8+
{[%clk 0:00:04.1]} 54... Kg5 {[%clk 0:00:25.2]} 55. Ra8 {[%clk 0:00:05]} 55...
Rb3+ {[%clk 0:00:25.3]} 56. Kf2 {[%clk 0:00:05.5]} 56... Rb4 {[%clk 0:00:25.7]}
57. Ra3 {[%clk 0:00:05.5]} 57... Kg4 {[%clk 0:00:25.5]} 58. Kf1 {[%clk
0:00:03.7]} 58... Rb2 {[%clk 0:00:23.7]} 59. Rc3 {[%clk 0:00:03.9]} 59... g5
{[%clk 0:00:24]} 60. Kg1 {[%clk 0:00:04.5]} 60... Kh3 {[%clk 0:00:21.2]} 61. Rf3
{[%clk 0:00:02.5]} 61... Rb5 {[%clk 0:00:11.1]} 62. Rc3 {[%clk 0:00:01.7]} 62...
g4 {[%clk 0:00:10.1]} 63. Kf2 {[%clk 0:00:01.9]} 63... Rb2+ {[%clk 0:00:10]} 64.
Kg1 {[%clk 0:00:02.5]} 64... Rg2+ {[%clk 0:00:10.3]} 65. Kf1 {[%clk 0:00:03.4]}
65... Rxg3 {[%clk 0:00:10.7]} 66. Rc8 {[%clk 0:00:04]} 66... Rf3+ {[%clk
0:00:09.4]} 67. Kg1 {[%clk 0:00:04.6]} 67... Kg3 {[%clk 0:00:09.9]} 68. Rc5
{[%clk 0:00:04.5]} 68... f4 {[%clk 0:00:10.1]} 69. Rc2 {[%clk 0:00:05.4]} 69...
Ra3 {[%clk 0:00:10.1]} 70. Rg2+ {[%clk 0:00:06]} 70... Kf3 {[%clk 0:00:10.6]}
71. Rf2+ {[%clk 0:00:06.7]} 71... Ke4 {[%clk 0:00:11.1]} 72. Re2+ {[%clk
0:00:06.7]} 72... Kf5 {[%clk 0:00:11.6]} 73. Rc2 {[%clk 0:00:07]} 73... g3
{[%clk 0:00:12]} 74. Kg2 {[%clk 0:00:07.2]} 74... Kg4 {[%clk 0:00:12.2]} 75. Rb2
{[%clk 0:00:07.7]} 75... f3+ {[%clk 0:00:12.3]} 76. Kf1 {[%clk 0:00:07.8]} 76...
Ra1+ {[%clk 0:00:12.3]} 77. Rb1 {[%clk 0:00:08.7]} 77... Rxb1# {[%clk
0:00:12.8]} 0-1